{"text_format":"3","workbook":"xlsx","n_sheets":6,"sheets":["Tablou de bord","Vânzări","Venit","Cheltuieli","Impozite și taxe","Categorii"],"not_rendered":{"images":1,"defined_names":34},"read":"whole","date_system":"1900"}

{"sheet":"Tablou de bord","index":0,"n_rows":19,"n_cols":8,"rows_kept":19,"merged":[[0,2,0,4],[0,6,3,7],[4,1,4,7]]}
[null,"Declarație de profit și pierdere","Pentru perioada de la [lună sau an] până la [zi-lună-an]"]
[null,"Numele firmei","Exprimat în mii"]
[null,"Marjă brută curentă [L/J]",{"$f":"IFERROR(IF(Total_Profit_Brut=0,\"-\",Total_Profit_Brut/Total_Venituri_Vânzări),\"-\")","v":"-"}]
[null,"Rentabilitatea curentă a vânzărilor [T/J]",{"$f":"IFERROR(IF(Profit_Net=0,\"-\",Profit_Net/Total_Venituri_Vânzări),\"-\")","v":"-"}]
[null,"Nu modificați categoriile din această foaie de lucru, altfel formulele pot deveni nefuncționale. Utilizați foaia de lucru Categorie pentru a adăuga categorii și a actualiza foile de lucru corespunzătoare cu intrări. Această foaie de lucru va actualiza automat."]
[null,"Rezumat","Total perioada anterioară","Total buget","Total curent Perioada","Total perioada curentă ca procent din vânzări","Procent total de modificare față de perioada anterioară","Procent total de modificare față de buget"]
[null,"Total Venituri din vânzări [J]",{"$f":"SUMIFS(VenituriVânzări[Perioada anterioară],VenituriVânzări[Tip câștig],\"Venituri din vânzări\")","v":0},{"$f":"SUMIFS(VenituriVânzări[Buget],VenituriVânzări[Tip câștig],\"Venituri din vânzări\")","v":0},{"$f":"SUMIFS(VenituriVânzări[Perioada curentă],VenituriVânzări[Tip câștig],\"Venituri din vânzări\")","v":0},{"$f":"SUMIFS(VenituriVânzări[Perioada curentă ca procent din vânzări],VenituriVânzări[Tip câștig],\"Venituri din vânzări\")","v":{"v":0,"d":"0.00%"}},{"$f":"SUMIFS(VenituriVânzări[Procent modificare față de perioada anterioară],VenituriVânzări[Tip câștig],\"Venituri din vânzări\")","v":{"v":0,"d":"0.00%"}},{"$f":"SUMIFS(VenituriVânzări[Procent modificare față de buget],VenituriVânzări[Tip câștig],\"Venituri din vânzări\")","v":{"v":0,"d":"0.00%"}}]
[null,"Cost total al vânzărilor [K]",{"$f":"SUMIFS(VenituriVânzări[Perioada anterioară],VenituriVânzări[Tip câștig],\"Cheltuieli de producție\")","v":0},{"$f":"SUMIFS(VenituriVânzări[Buget],VenituriVânzări[Tip câștig],\"Cheltuieli de producție\")","v":0},{"$f":"SUMIFS(VenituriVânzări[Perioada curentă],VenituriVânzări[Tip câștig],\"Cheltuieli de producție\")","v":0},{"$f":"SUMIFS(VenituriVânzări[Perioada curentă ca procent din vânzări],VenituriVânzări[Tip câștig],\"Cheltuieli de producție\")","v":{"v":0,"d":"0.00%"}},{"$f":"SUMIFS(VenituriVânzări[Procent modificare față de perioada anterioară],VenituriVânzări[Tip câștig],\"Cheltuieli de producție\")","v":{"v":0,"d":"0.00%"}},{"$f":"SUMIFS(VenituriVânzări[Procent modificare față de buget],VenituriVânzări[Tip câștig],\"Cheltuieli de producție\")","v":{"v":0,"d":"0.00%"}}]
[null,"Total cheltuieli de vânzări și marketing [M]",{"$f":"SUMIFS(CheltuieliExploatare[Perioada anterioară],CheltuieliExploatare[Tipul cheltuielii],\"Vânzări și marketing\")","v":0},{"$f":"SUMIFS(CheltuieliExploatare[Buget],CheltuieliExploatare[Tipul cheltuielii],\"Vânzări și marketing\")","v":0},{"$f":"SUMIFS(CheltuieliExploatare[Perioada curentă],CheltuieliExploatare[Tipul cheltuielii],\"Vânzări și marketing\")","v":0},{"$f":"SUMIFS(CheltuieliExploatare[Perioada curentă ca procent din vânzări],CheltuieliExploatare[Tipul cheltuielii],\"Vânzări și marketing\")","v":{"v":0,"d":"0.00%"}},{"$f":"SUMIFS(CheltuieliExploatare[Procent modificare față de perioada anterioară],CheltuieliExploatare[Tipul cheltuielii],\"Vânzări și marketing\")","v":{"v":0,"d":"0.00%"}},{"$f":"SUMIFS(CheltuieliExploatare[Procent modificare față de buget],CheltuieliExploatare[Tipul cheltuielii],\"Vânzări și marketing\")","v":{"v":0,"d":"0.00%"}}]
[null,"Total cheltuieli de cercetare și dezvoltare [N]",{"$f":"SUMIFS(CheltuieliExploatare[Perioada anterioară],CheltuieliExploatare[Tipul cheltuielii],\"Cercetare și dezvoltare\")","v":0},{"$f":"SUMIFS(CheltuieliExploatare[Buget],CheltuieliExploatare[Tipul cheltuielii],\"Cercetare și dezvoltare\")","v":0},{"$f":"SUMIFS(CheltuieliExploatare[Perioada curentă],CheltuieliExploatare[Tipul cheltuielii],\"Cercetare și dezvoltare\")","v":0},{"$f":"SUMIFS(CheltuieliExploatare[Perioada curentă ca procent din vânzări],CheltuieliExploatare[Tipul cheltuielii],\"Cercetare și dezvoltare\")","v":{"v":0,"d":"0.00%"}},{"$f":"SUMIFS(CheltuieliExploatare[Procent modificare față de perioada anterioară],CheltuieliExploatare[Tipul cheltuielii],\"Cercetare și dezvoltare\")","v":{"v":0,"d":"0.00%"}},{"$f":"SUMIFS(CheltuieliExploatare[Procent modificare față de buget],CheltuieliExploatare[Tipul cheltuielii],\"Cercetare și dezvoltare\")","v":{"v":0,"d":"0.00%"}}]
[null,"Total cheltuieli generale și administrative [O]",{"$f":"SUMIFS(CheltuieliExploatare[Perioada anterioară],CheltuieliExploatare[Tipul cheltuielii],\"Generale și administrative\")","v":0},{"$f":"SUMIFS(CheltuieliExploatare[Buget],CheltuieliExploatare[Tipul cheltuielii],\"Generale și administrative\")","v":0},{"$f":"SUMIFS(CheltuieliExploatare[Perioada curentă],CheltuieliExploatare[Tipul cheltuielii],\"Generale și administrative\")","v":0},{"$f":"SUMIFS(CheltuieliExploatare[Perioada curentă ca procent din vânzări],CheltuieliExploatare[Tipul cheltuielii],\"Generale și administrative\")","v":{"v":0,"d":"0.00%"}},{"$f":"SUMIFS(CheltuieliExploatare[Procent modificare față de perioada anterioară],CheltuieliExploatare[Tipul cheltuielii],\"Generale și administrative\")","v":{"v":0,"d":"0.00%"}},{"$f":"SUMIFS(CheltuieliExploatare[Procent modificare față de buget],CheltuieliExploatare[Tipul cheltuielii],\"Generale și administrative\")","v":{"v":0,"d":"0.00%"}}]
[null,"Total alte cheltuieli de operare [P]",{"$f":"CheltuieliExploatare[[#Totals],[Perioada anterioară]]-SUM(C9:C11)","v":0},{"$f":"CheltuieliExploatare[[#Totals],[Buget]]-SUM(D9:D11)","v":0},{"$f":"CheltuieliExploatare[[#Totals],[Perioada curentă]]-SUM(E9:E11)","v":0},{"$f":"CheltuieliExploatare[[#Totals],[Perioada curentă ca procent din vânzări]]-SUM(F9:F11)","v":{"v":0,"d":"0.00%"}},{"$f":"CheltuieliExploatare[[#Totals],[Procent modificare față de perioada anterioară]]-SUM(G9:G11)","v":{"v":0,"d":"0.00%"}},{"$f":"CheltuieliExploatare[[#Totals],[Procent modificare față de buget]]-SUM(H9:H11)","v":{"v":0,"d":"0.00%"}}]
[null,"Alte venituri [S]",{"$f":"Venit[[#Totals],[Perioada anterioară]]","v":0},{"$f":"Venit[[#Totals],[Buget]]","v":0},{"$f":"Venit[[#Totals],[Perioada curentă]]","v":0},{"$f":"Venit[[#Totals],[Perioada curentă ca procent din vânzări]]","v":{"v":0,"d":"0.00%"}},{"$f":"Venit[[#Totals],[Procent modificare față de perioada anterioară]]","v":{"v":0,"d":"0.00%"}},{"$f":"Venit[[#Totals],[Procent modificare față de buget]]","v":{"v":0,"d":"0.00%"}}]
[null,"Total taxe și impozite [T]",{"$f":"Impozite_și_taxe[[#Totals],[Perioada anterioară]]","v":0},{"$f":"Impozite_și_taxe[[#Totals],[Buget]]","v":0},{"$f":"Impozite_și_taxe[[#Totals],[Perioada curentă]]","v":0},{"$f":"Impozite_și_taxe[[#Totals],[Perioada curentă ca procent din vânzări]]","v":{"v":0,"d":"0.00%"}},{"$f":"Impozite_și_taxe[[#Totals],[Procent modificare față de perioada anterioară]]","v":{"v":0,"d":"0.00%"}},{"$f":"Impozite_și_taxe[[#Totals],[Procent modificare față de buget]]","v":{"v":0,"d":"0.00%"}}]
[]
[null,"Profit brut [L=J-K]",{"$f":"IFERROR(C7-C8,\"-\")","v":0},{"$f":"IFERROR(D7-D8,\"-\")","v":0},{"$f":"IFERROR(Total_Venituri_Vânzări-Cost_Total_Vânzări,\"-\")","v":0},{"$f":"IFERROR(IF(Total_Venituri_Vânzări=0,\"0,00%\",Total_Profit_Brut/Total_Venituri_Vânzări),\"-\")","v":"0,00%"},{"$f":"IFERROR(IF(C16=Total_Profit_Brut,0,IF(Total_Profit_Brut>C16,ABS((Total_Profit_Brut/C16)-1),IF(AND(Total_Profit_Brut<C16,C16<0),-((Total_Profit_Brut/C16)-1),(Total_Profit_Brut/C16)-1))),\"-\")","v":{"v":0,"d":"0.00%"}},{"$f":"IFERROR(IF(D16=Total_Profit_Brut,0,IF(Total_Profit_Brut>D16,ABS((Total_Profit_Brut/D16)-1),IF(AND(Total_Profit_Brut<D16,D16<0),-((Total_Profit_Brut/D16)-1),(Total_Profit_Brut/D16)-1))),\"-\")","v":{"v":0,"d":"0.00%"}}]
[null,"Total cheltuieli de operare [Q=M+N+O+P]",{"$f":"IFERROR(C9+C10+C11+C12,\"-\")","v":0},{"$f":"IFERROR(D9+D10+D11+D12,\"-\")","v":0},{"$f":"IFERROR(Total_Vânzări_și_Marketing+Total_Cercetare_și_Dezvoltare+Total_Generale_și_Administrative+Total_Alte_Cheltuieli,\"-\")","v":0},{"$f":"IFERROR(IF(Total_Venituri_Vânzări=0,\"0,00%\",Total_Cheltuieli_Operare/Total_Venituri_Vânzări),\"-\")","v":"0,00%"},{"$f":"IFERROR(IF(C17=Total_Cheltuieli_Operare,0,IF(Total_Cheltuieli_Operare>C17,ABS((Total_Cheltuieli_Operare/C17)-1),IF(AND(Total_Cheltuieli_Operare<C17,C17<0),-((Total_Cheltuieli_Operare/C17)-1),(Total_Cheltuieli_Operare/C17)-1))),\"-\")","v":{"v":0,"d":"0.00%"}},{"$f":"IFERROR(IF(D17=Total_Cheltuieli_Operare,0,IF(Total_Cheltuieli_Operare>D17,ABS((Total_Cheltuieli_Operare/D17)-1),IF(AND(Total_Cheltuieli_Operare<D17,D17<0),-((Total_Cheltuieli_Operare/D17)-1),(Total_Cheltuieli_Operare/D17)-1))),\"-\")","v":{"v":0,"d":"0.00%"}}]
[null,"Venit din operațiuni [R=L-Q]",{"$f":"IFERROR(C16-C17,\"-\")","v":0},{"$f":"IFERROR(D16-D17,\"-\")","v":0},{"$f":"IFERROR(Total_Profit_Brut-Total_Cheltuieli_Operare,\"-\")","v":0},{"$f":"IFERROR(IF(Total_Venituri_Vânzări=0,\"0,00%\",Total_Venit_Operațiuni/Total_Venituri_Vânzări),\"-\")","v":"0,00%"},{"$f":"IFERROR(IF(C18=Total_Venit_Operațiuni,0,IF(Total_Venit_Operațiuni>C18,ABS((Total_Venit_Operațiuni/C18)-1),IF(AND(Total_Venit_Operațiuni<C18,C18<0),-((Total_Venit_Operațiuni/C18)-1),(Total_Venit_Operațiuni/C18)-1))),\"-\")","v":{"v":0,"d":"0.00%"}},{"$f":"IFERROR(IF(D18=Total_Venit_Operațiuni,0,IF(Total_Venit_Operațiuni>D18,ABS((Total_Venit_Operațiuni/D18)-1),IF(AND(Total_Venit_Operațiuni<D18,D18<0),-((Total_Venit_Operațiuni/D18)-1),(Total_Venit_Operațiuni/D18)-1))),\"-\")","v":{"v":0,"d":"0.00%"}}]
[null,"Profit net [U=R+S-T]",{"$f":"IFERROR(C18+C13-C14,\"-\")","v":0},{"$f":"IFERROR(D18+D13-D14,\"-\")","v":0},{"$f":"Total_Venit_Operațiuni+Total_Alte_Venituri-Total_TaxeImpozite","v":0},{"$f":"IFERROR(IF(Total_Venituri_Vânzări=0,\"0,00%\",Profit_Net/Total_Venituri_Vânzări),\"-\")","v":"0,00%"},{"$f":"IFERROR(IF(C19=Profit_Net,0,IF(Profit_Net>C19,ABS((Profit_Net/C19)-1),IF(AND(Profit_Net<C19,C19<0),-((Profit_Net/C19)-1),(Profit_Net/C19)-1))),\"-\")","v":{"v":0,"d":"0.00%"}},{"$f":"IFERROR(IF(D19=Profit_Net,0,IF(Profit_Net>D19,ABS((Profit_Net/D19)-1),IF(AND(Profit_Net<D19,D19<0),-((Profit_Net/D19)-1),(Profit_Net/D19)-1))),\"-\")","v":{"v":0,"d":"0.00%"}}]

{"sheet":"Vânzări","index":1,"n_rows":13,"n_cols":9,"rows_kept":13,"merged":[[0,7,2,8]]}
[null,{"$f":"Titlu_RegistruLucru","v":"Declarație de profit și pierdere"}]
[null,{"$f":"Nume_Firmă","v":"Numele firmei"},"Exprimat în mii"]
[null,"Venituri din vânzări",{"$f":"IFERROR(Venituri_Vânzări,\"-\")","v":0}]
[null,"Tip câștig","Descriere","Perioada anterioară","Buget","Perioada curentă","Perioada curentă ca procent din vânzări","Procent modificare față de perioada anterioară","Procent modificare față de buget"]
[null,"Venituri din vânzări","Produs/serviciu 1",{"$nulls":3},{"$f":"IFERROR(IF(VenituriVânzări[[#Totals],[Perioada curentă]]=0,\"-\",VenituriVânzări[Perioada curentă]/Venituri_Vânzări),\"-\")","v":"-"},{"$f":"IFERROR(IF(VenituriVânzări[Perioada anterioară]=VenituriVânzări[Perioada curentă],0,IF(VenituriVânzări[Perioada curentă]>VenituriVânzări[Perioada anterioară],ABS((VenituriVânzări[Perioada curentă]/VenituriVânzări[Perioada anterioară])-1),IF(AND(VenituriVânzări[Perioada curentă]<VenituriVânzări[Perioada anterioară],VenituriVânzări[Perioada anterioară]<0),-((VenituriVânzări[Perioada curentă]/VenituriVânzări[Perioada anterioară])-1),(VenituriVânzări[Perioada curentă]/VenituriVânzări[Perioada anterioară])-1))),\"-\")","v":{"v":0,"d":"0.00%"}},{"$f":"IFERROR(IF(VenituriVânzări[Buget]=VenituriVânzări[Perioada curentă],0,IF(VenituriVânzări[Perioada curentă]>VenituriVânzări[Buget],ABS((VenituriVânzări[Perioada curentă]/VenituriVânzări[Buget])-1),IF(AND(VenituriVânzări[Perioada curentă]<VenituriVânzări[Buget],VenituriVânzări[Buget]<0),-((VenituriVânzări[Perioada curentă]/VenituriVânzări[Buget])-1),(VenituriVânzări[Perioada curentă]/VenituriVânzări[Buget])-1))),\"-\")","v":{"v":0,"d":"0.00%"}}]
[null,"Venituri din vânzări","Produs/serviciu 2",{"$nulls":3},{"$f":"IFERROR(IF(VenituriVânzări[[#Totals],[Perioada curentă]]=0,\"-\",VenituriVânzări[Perioada curentă]/Venituri_Vânzări),\"-\")","v":"-"},{"$f":"IFERROR(IF(VenituriVânzări[Perioada anterioară]=VenituriVânzări[Perioada curentă],0,IF(VenituriVânzări[Perioada curentă]>VenituriVânzări[Perioada anterioară],ABS((VenituriVânzări[Perioada curentă]/VenituriVânzări[Perioada anterioară])-1),IF(AND(VenituriVânzări[Perioada curentă]<VenituriVânzări[Perioada anterioară],VenituriVânzări[Perioada anterioară]<0),-((VenituriVânzări[Perioada curentă]/VenituriVânzări[Perioada anterioară])-1),(VenituriVânzări[Perioada curentă]/VenituriVânzări[Perioada anterioară])-1))),\"-\")","v":{"v":0,"d":"0.00%"}},{"$f":"IFERROR(IF(VenituriVânzări[Buget]=VenituriVânzări[Perioada curentă],0,IF(VenituriVânzări[Perioada curentă]>VenituriVânzări[Buget],ABS((VenituriVânzări[Perioada curentă]/VenituriVânzări[Buget])-1),IF(AND(VenituriVânzări[Perioada curentă]<VenituriVânzări[Buget],VenituriVânzări[Buget]<0),-((VenituriVânzări[Perioada curentă]/VenituriVânzări[Buget])-1),(VenituriVânzări[Perioada curentă]/VenituriVânzări[Buget])-1))),\"-\")","v":{"v":0,"d":"0.00%"}}]
[null,"Venituri din vânzări","Produs/serviciu 3",{"$nulls":3},{"$f":"IFERROR(IF(VenituriVânzări[[#Totals],[Perioada curentă]]=0,\"-\",VenituriVânzări[Perioada curentă]/Venituri_Vânzări),\"-\")","v":"-"},{"$f":"IFERROR(IF(VenituriVânzări[Perioada anterioară]=VenituriVânzări[Perioada curentă],0,IF(VenituriVânzări[Perioada curentă]>VenituriVânzări[Perioada anterioară],ABS((VenituriVânzări[Perioada curentă]/VenituriVânzări[Perioada anterioară])-1),IF(AND(VenituriVânzări[Perioada curentă]<VenituriVânzări[Perioada anterioară],VenituriVânzări[Perioada anterioară]<0),-((VenituriVânzări[Perioada curentă]/VenituriVânzări[Perioada anterioară])-1),(VenituriVânzări[Perioada curentă]/VenituriVânzări[Perioada anterioară])-1))),\"-\")","v":{"v":0,"d":"0.00%"}},{"$f":"IFERROR(IF(VenituriVânzări[Buget]=VenituriVânzări[Perioada curentă],0,IF(VenituriVânzări[Perioada curentă]>VenituriVânzări[Buget],ABS((VenituriVânzări[Perioada curentă]/VenituriVânzări[Buget])-1),IF(AND(VenituriVânzări[Perioada curentă]<VenituriVânzări[Buget],VenituriVânzări[Buget]<0),-((VenituriVânzări[Perioada curentă]/VenituriVânzări[Buget])-1),(VenituriVânzări[Perioada curentă]/VenituriVânzări[Buget])-1))),\"-\")","v":{"v":0,"d":"0.00%"}}]
[null,"Venituri din vânzări","Produs/serviciu 4",{"$nulls":3},{"$f":"IFERROR(IF(VenituriVânzări[[#Totals],[Perioada curentă]]=0,\"-\",VenituriVânzări[Perioada curentă]/Venituri_Vânzări),\"-\")","v":"-"},{"$f":"IFERROR(IF(VenituriVânzări[Perioada anterioară]=VenituriVânzări[Perioada curentă],0,IF(VenituriVânzări[Perioada curentă]>VenituriVânzări[Perioada anterioară],ABS((VenituriVânzări[Perioada curentă]/VenituriVânzări[Perioada anterioară])-1),IF(AND(VenituriVânzări[Perioada curentă]<VenituriVânzări[Perioada anterioară],VenituriVânzări[Perioada anterioară]<0),-((VenituriVânzări[Perioada curentă]/VenituriVânzări[Perioada anterioară])-1),(VenituriVânzări[Perioada curentă]/VenituriVânzări[Perioada anterioară])-1))),\"-\")","v":{"v":0,"d":"0.00%"}},{"$f":"IFERROR(IF(VenituriVânzări[Buget]=VenituriVânzări[Perioada curentă],0,IF(VenituriVânzări[Perioada curentă]>VenituriVânzări[Buget],ABS((VenituriVânzări[Perioada curentă]/VenituriVânzări[Buget])-1),IF(AND(VenituriVânzări[Perioada curentă]<VenituriVânzări[Buget],VenituriVânzări[Buget]<0),-((VenituriVânzări[Perioada curentă]/VenituriVânzări[Buget])-1),(VenituriVânzări[Perioada curentă]/VenituriVânzări[Buget])-1))),\"-\")","v":{"v":0,"d":"0.00%"}}]
[null,"Cheltuieli de producție","Produs/serviciu 1",{"$nulls":3},{"$f":"IFERROR(IF(VenituriVânzări[[#Totals],[Perioada curentă]]=0,\"-\",VenituriVânzări[Perioada curentă]/Venituri_Vânzări),\"-\")","v":"-"},{"$f":"IFERROR(IF(VenituriVânzări[Perioada anterioară]=VenituriVânzări[Perioada curentă],0,IF(VenituriVânzări[Perioada curentă]>VenituriVânzări[Perioada anterioară],ABS((VenituriVânzări[Perioada curentă]/VenituriVânzări[Perioada anterioară])-1),IF(AND(VenituriVânzări[Perioada curentă]<VenituriVânzări[Perioada anterioară],VenituriVânzări[Perioada anterioară]<0),-((VenituriVânzări[Perioada curentă]/VenituriVânzări[Perioada anterioară])-1),(VenituriVânzări[Perioada curentă]/VenituriVânzări[Perioada anterioară])-1))),\"-\")","v":{"v":0,"d":"0.00%"}},{"$f":"IFERROR(IF(VenituriVânzări[Buget]=VenituriVânzări[Perioada curentă],0,IF(VenituriVânzări[Perioada curentă]>VenituriVânzări[Buget],ABS((VenituriVânzări[Perioada curentă]/VenituriVânzări[Buget])-1),IF(AND(VenituriVânzări[Perioada curentă]<VenituriVânzări[Buget],VenituriVânzări[Buget]<0),-((VenituriVânzări[Perioada curentă]/VenituriVânzări[Buget])-1),(VenituriVânzări[Perioada curentă]/VenituriVânzări[Buget])-1))),\"-\")","v":{"v":0,"d":"0.00%"}}]
[null,"Cheltuieli de producție","Produs/serviciu 2",{"$nulls":3},{"$f":"IFERROR(IF(VenituriVânzări[[#Totals],[Perioada curentă]]=0,\"-\",VenituriVânzări[Perioada curentă]/Venituri_Vânzări),\"-\")","v":"-"},{"$f":"IFERROR(IF(VenituriVânzări[Perioada anterioară]=VenituriVânzări[Perioada curentă],0,IF(VenituriVânzări[Perioada curentă]>VenituriVânzări[Perioada anterioară],ABS((VenituriVânzări[Perioada curentă]/VenituriVânzări[Perioada anterioară])-1),IF(AND(VenituriVânzări[Perioada curentă]<VenituriVânzări[Perioada anterioară],VenituriVânzări[Perioada anterioară]<0),-((VenituriVânzări[Perioada curentă]/VenituriVânzări[Perioada anterioară])-1),(VenituriVânzări[Perioada curentă]/VenituriVânzări[Perioada anterioară])-1))),\"-\")","v":{"v":0,"d":"0.00%"}},{"$f":"IFERROR(IF(VenituriVânzări[Buget]=VenituriVânzări[Perioada curentă],0,IF(VenituriVânzări[Perioada curentă]>VenituriVânzări[Buget],ABS((VenituriVânzări[Perioada curentă]/VenituriVânzări[Buget])-1),IF(AND(VenituriVânzări[Perioada curentă]<VenituriVânzări[Buget],VenituriVânzări[Buget]<0),-((VenituriVânzări[Perioada curentă]/VenituriVânzări[Buget])-1),(VenituriVânzări[Perioada curentă]/VenituriVânzări[Buget])-1))),\"-\")","v":{"v":0,"d":"0.00%"}}]
[null,"Cheltuieli de producție","Produs/serviciu 3",{"$nulls":3},{"$f":"IFERROR(IF(VenituriVânzări[[#Totals],[Perioada curentă]]=0,\"-\",VenituriVânzări[Perioada curentă]/Venituri_Vânzări),\"-\")","v":"-"},{"$f":"IFERROR(IF(VenituriVânzări[Perioada anterioară]=VenituriVânzări[Perioada curentă],0,IF(VenituriVânzări[Perioada curentă]>VenituriVânzări[Perioada anterioară],ABS((VenituriVânzări[Perioada curentă]/VenituriVânzări[Perioada anterioară])-1),IF(AND(VenituriVânzări[Perioada curentă]<VenituriVânzări[Perioada anterioară],VenituriVânzări[Perioada anterioară]<0),-((VenituriVânzări[Perioada curentă]/VenituriVânzări[Perioada anterioară])-1),(VenituriVânzări[Perioada curentă]/VenituriVânzări[Perioada anterioară])-1))),\"-\")","v":{"v":0,"d":"0.00%"}},{"$f":"IFERROR(IF(VenituriVânzări[Buget]=VenituriVânzări[Perioada curentă],0,IF(VenituriVânzări[Perioada curentă]>VenituriVânzări[Buget],ABS((VenituriVânzări[Perioada curentă]/VenituriVânzări[Buget])-1),IF(AND(VenituriVânzări[Perioada curentă]<VenituriVânzări[Buget],VenituriVânzări[Buget]<0),-((VenituriVânzări[Perioada curentă]/VenituriVânzări[Buget])-1),(VenituriVânzări[Perioada curentă]/VenituriVânzări[Buget])-1))),\"-\")","v":{"v":0,"d":"0.00%"}}]
[null,"Cheltuieli de producție","Produs/serviciu 4",{"$nulls":3},{"$f":"IFERROR(IF(VenituriVânzări[[#Totals],[Perioada curentă]]=0,\"-\",VenituriVânzări[Perioada curentă]/Venituri_Vânzări),\"-\")","v":"-"},{"$f":"IFERROR(IF(VenituriVânzări[Perioada anterioară]=VenituriVânzări[Perioada curentă],0,IF(VenituriVânzări[Perioada curentă]>VenituriVânzări[Perioada anterioară],ABS((VenituriVânzări[Perioada curentă]/VenituriVânzări[Perioada anterioară])-1),IF(AND(VenituriVânzări[Perioada curentă]<VenituriVânzări[Perioada anterioară],VenituriVânzări[Perioada anterioară]<0),-((VenituriVânzări[Perioada curentă]/VenituriVânzări[Perioada anterioară])-1),(VenituriVânzări[Perioada curentă]/VenituriVânzări[Perioada anterioară])-1))),\"-\")","v":{"v":0,"d":"0.00%"}},{"$f":"IFERROR(IF(VenituriVânzări[Buget]=VenituriVânzări[Perioada curentă],0,IF(VenituriVânzări[Perioada curentă]>VenituriVânzări[Buget],ABS((VenituriVânzări[Perioada curentă]/VenituriVânzări[Buget])-1),IF(AND(VenituriVânzări[Perioada curentă]<VenituriVânzări[Buget],VenituriVânzări[Buget]<0),-((VenituriVânzări[Perioada curentă]/VenituriVânzări[Buget])-1),(VenituriVânzări[Perioada curentă]/VenituriVânzări[Buget])-1))),\"-\")","v":{"v":0,"d":"0.00%"}}]
[null,"Total venituri din vânzări",null,{"$f":"SUBTOTAL(109,VenituriVânzări[Perioada anterioară])","v":0},{"$f":"SUBTOTAL(109,VenituriVânzări[Buget])","v":0},{"$f":"SUBTOTAL(109,VenituriVânzări[Perioada curentă])","v":0},{"$f":"SUBTOTAL(109,VenituriVânzări[Perioada curentă ca procent din vânzări])","v":{"v":0,"d":"0.00%"}},{"$f":"SUBTOTAL(109,VenituriVânzări[Procent modificare față de perioada anterioară])","v":{"v":0,"d":"0.00%"}},{"$f":"SUBTOTAL(109,VenituriVânzări[Procent modificare față de buget])","v":{"v":0,"d":"0.00%"}}]

{"sheet":"Venit","index":2,"n_rows":7,"n_cols":9,"rows_kept":7,"merged":[[0,7,2,8]]}
[null,{"$f":"Titlu_RegistruLucru","v":"Declarație de profit și pierdere"}]
[null,{"$f":"Nume_Firmă","v":"Numele firmei"},"Exprimat în mii"]
[null,"Venit",{"$f":"IFERROR(Venit[[#Totals],[Perioada curentă]],\"-\")","v":0}]
[null,"Tip de venit","Descriere","Perioada anterioară","Buget","Perioada curentă","Perioada curentă ca procent din vânzări","Procent modificare față de perioada anterioară","Procent modificare față de buget"]
[null,"Venit","Alte venituri",{"$nulls":3},{"$f":"IFERROR(IF(Venituri_Vânzări=0,\"-\",Venit[Perioada curentă]/Venituri_Vânzări),\"-\")","v":"-"},{"$f":"IFERROR(IF(Venit[Perioada anterioară]=Venit[Perioada curentă],0,IF(Venit[Perioada curentă]>Venit[Perioada anterioară],ABS((Venit[Perioada curentă]/Venit[Perioada anterioară])-1),IF(AND(Venit[Perioada curentă]<Venit[Perioada anterioară],Venit[Perioada anterioară]<0),-((Venit[Perioada curentă]/Venit[Perioada anterioară])-1),(Venit[Perioada curentă]/Venit[Perioada anterioară])-1))),\"-\")","v":{"v":0,"d":"0.00%"}},{"$f":"IFERROR(IF(Venit[Buget]=Venit[Perioada curentă],0,IF(Venit[Perioada curentă]>Venit[Buget],ABS((Venit[Perioada curentă]/Venit[Buget])-1),IF(AND(Venit[Perioada curentă]<Venit[Buget],Venit[Buget]<0),-((Venit[Perioada curentă]/Venit[Buget])-1),(Venit[Perioada curentă]/Venit[Buget])-1))),\"-\")","v":{"v":0,"d":"0.00%"}}]
[{"$nulls":6},{"$f":"IFERROR(IF(Venituri_Vânzări=0,\"-\",Venit[Perioada curentă]/Venituri_Vânzări),\"-\")","v":"-"},{"$f":"IFERROR(IF(Venit[Perioada anterioară]=Venit[Perioada curentă],0,IF(Venit[Perioada curentă]>Venit[Perioada anterioară],ABS((Venit[Perioada curentă]/Venit[Perioada anterioară])-1),IF(AND(Venit[Perioada curentă]<Venit[Perioada anterioară],Venit[Perioada anterioară]<0),-((Venit[Perioada curentă]/Venit[Perioada anterioară])-1),(Venit[Perioada curentă]/Venit[Perioada anterioară])-1))),\"-\")","v":{"v":0,"d":"0.00%"}},{"$f":"IFERROR(IF(Venit[Buget]=Venit[Perioada curentă],0,IF(Venit[Perioada curentă]>Venit[Buget],ABS((Venit[Perioada curentă]/Venit[Buget])-1),IF(AND(Venit[Perioada curentă]<Venit[Buget],Venit[Buget]<0),-((Venit[Perioada curentă]/Venit[Buget])-1),(Venit[Perioada curentă]/Venit[Buget])-1))),\"-\")","v":{"v":0,"d":"0.00%"}}]
[null,"Total venituri din vânzări",null,{"$f":"SUBTOTAL(109,Venit[Perioada anterioară])","v":0},{"$f":"SUBTOTAL(109,Venit[Buget])","v":0},{"$f":"SUBTOTAL(109,Venit[Perioada curentă])","v":0},{"$f":"SUBTOTAL(109,Venit[Perioada curentă ca procent din vânzări])","v":{"v":0,"d":"0.00%"}},{"$f":"SUBTOTAL(109,Venit[Procent modificare față de perioada anterioară])","v":{"v":0,"d":"0.00%"}},{"$f":"SUBTOTAL(109,Venit[Procent modificare față de buget])","v":{"v":0,"d":"0.00%"}}]

{"sheet":"Cheltuieli","index":3,"n_rows":25,"n_cols":9,"rows_kept":25,"merged":[[0,7,2,8]]}
[null,{"$f":"Titlu_RegistruLucru","v":"Declarație de profit și pierdere"}]
[null,{"$f":"Nume_Firmă","v":"Numele firmei"},"Exprimat în mii"]
[null,"Cheltuieli de operare",{"$f":"IFERROR(CheltuieliExploatare[[#Totals],[Perioada curentă]],\"-\")","v":0}]
[null,"Tipul cheltuielii","Descriere","Perioada anterioară","Buget","Perioada curentă","Perioada curentă ca procent din vânzări","Procent modificare față de perioada anterioară","Procent modificare față de buget"]
[null,"Vânzări și marketing","Publicitate",{"$nulls":3},{"$f":"IFERROR(IF(Venituri_Vânzări=0,\"-\",CheltuieliExploatare[Perioada curentă]/Venituri_Vânzări),\"-\")","v":"-"},{"$f":"IFERROR(IF(CheltuieliExploatare[Perioada anterioară]=CheltuieliExploatare[Perioada curentă],0,IF(CheltuieliExploatare[Perioada curentă]>CheltuieliExploatare[Perioada anterioară],ABS((CheltuieliExploatare[Perioada curentă]/CheltuieliExploatare[Perioada anterioară])-1),IF(AND(CheltuieliExploatare[Perioada curentă]<CheltuieliExploatare[Perioada anterioară],CheltuieliExploatare[Perioada anterioară]<0),-((CheltuieliExploatare[Perioada curentă]/CheltuieliExploatare[Perioada anterioară])-1),(CheltuieliExploatare[Perioada curentă]/CheltuieliExploatare[Perioada anterioară])-1))),\"-\")","v":{"v":0,"d":"0.00%"}},{"$f":"IFERROR(IF(CheltuieliExploatare[Buget]=CheltuieliExploatare[Perioada curentă],0,IF(CheltuieliExploatare[Perioada curentă]>CheltuieliExploatare[Buget],ABS((CheltuieliExploatare[Perioada curentă]/CheltuieliExploatare[Buget])-1),IF(AND(CheltuieliExploatare[Perioada curentă]<CheltuieliExploatare[Buget],CheltuieliExploatare[Buget]<0),-((CheltuieliExploatare[Perioada curentă]/CheltuieliExploatare[Buget])-1),(CheltuieliExploatare[Perioada curentă]/CheltuieliExploatare[Buget])-1))),\"-\")","v":{"v":0,"d":"0.00%"}}]
[null,"Vânzări și marketing","Marketing direct",{"$nulls":3},{"$f":"IFERROR(IF(Venituri_Vânzări=0,\"-\",CheltuieliExploatare[Perioada curentă]/Venituri_Vânzări),\"-\")","v":"-"},{"$f":"IFERROR(IF(CheltuieliExploatare[Perioada anterioară]=CheltuieliExploatare[Perioada curentă],0,IF(CheltuieliExploatare[Perioada curentă]>CheltuieliExploatare[Perioada anterioară],ABS((CheltuieliExploatare[Perioada curentă]/CheltuieliExploatare[Perioada anterioară])-1),IF(AND(CheltuieliExploatare[Perioada curentă]<CheltuieliExploatare[Perioada anterioară],CheltuieliExploatare[Perioada anterioară]<0),-((CheltuieliExploatare[Perioada curentă]/CheltuieliExploatare[Perioada anterioară])-1),(CheltuieliExploatare[Perioada curentă]/CheltuieliExploatare[Perioada anterioară])-1))),\"-\")","v":{"v":0,"d":"0.00%"}},{"$f":"IFERROR(IF(CheltuieliExploatare[Buget]=CheltuieliExploatare[Perioada curentă],0,IF(CheltuieliExploatare[Perioada curentă]>CheltuieliExploatare[Buget],ABS((CheltuieliExploatare[Perioada curentă]/CheltuieliExploatare[Buget])-1),IF(AND(CheltuieliExploatare[Perioada curentă]<CheltuieliExploatare[Buget],CheltuieliExploatare[Buget]<0),-((CheltuieliExploatare[Perioada curentă]/CheltuieliExploatare[Buget])-1),(CheltuieliExploatare[Perioada curentă]/CheltuieliExploatare[Buget])-1))),\"-\")","v":{"v":0,"d":"0.00%"}}]
[null,"Vânzări și marketing","Alte cheltuieli (specificați)",{"$nulls":3},{"$f":"IFERROR(IF(Venituri_Vânzări=0,\"-\",CheltuieliExploatare[Perioada curentă]/Venituri_Vânzări),\"-\")","v":"-"},{"$f":"IFERROR(IF(CheltuieliExploatare[Perioada anterioară]=CheltuieliExploatare[Perioada curentă],0,IF(CheltuieliExploatare[Perioada curentă]>CheltuieliExploatare[Perioada anterioară],ABS((CheltuieliExploatare[Perioada curentă]/CheltuieliExploatare[Perioada anterioară])-1),IF(AND(CheltuieliExploatare[Perioada curentă]<CheltuieliExploatare[Perioada anterioară],CheltuieliExploatare[Perioada anterioară]<0),-((CheltuieliExploatare[Perioada curentă]/CheltuieliExploatare[Perioada anterioară])-1),(CheltuieliExploatare[Perioada curentă]/CheltuieliExploatare[Perioada anterioară])-1))),\"-\")","v":{"v":0,"d":"0.00%"}},{"$f":"IFERROR(IF(CheltuieliExploatare[Buget]=CheltuieliExploatare[Perioada curentă],0,IF(CheltuieliExploatare[Perioada curentă]>CheltuieliExploatare[Buget],ABS((CheltuieliExploatare[Perioada curentă]/CheltuieliExploatare[Buget])-1),IF(AND(CheltuieliExploatare[Perioada curentă]<CheltuieliExploatare[Buget],CheltuieliExploatare[Buget]<0),-((CheltuieliExploatare[Perioada curentă]/CheltuieliExploatare[Buget])-1),(CheltuieliExploatare[Perioada curentă]/CheltuieliExploatare[Buget])-1))),\"-\")","v":{"v":0,"d":"0.00%"}}]
[null,"Vânzări și marketing","Alte cheltuieli (specificați)",{"$nulls":3},{"$f":"IFERROR(IF(Venituri_Vânzări=0,\"-\",CheltuieliExploatare[Perioada curentă]/Venituri_Vânzări),\"-\")","v":"-"},{"$f":"IFERROR(IF(CheltuieliExploatare[Perioada anterioară]=CheltuieliExploatare[Perioada curentă],0,IF(CheltuieliExploatare[Perioada curentă]>CheltuieliExploatare[Perioada anterioară],ABS((CheltuieliExploatare[Perioada curentă]/CheltuieliExploatare[Perioada anterioară])-1),IF(AND(CheltuieliExploatare[Perioada curentă]<CheltuieliExploatare[Perioada anterioară],CheltuieliExploatare[Perioada anterioară]<0),-((CheltuieliExploatare[Perioada curentă]/CheltuieliExploatare[Perioada anterioară])-1),(CheltuieliExploatare[Perioada curentă]/CheltuieliExploatare[Perioada anterioară])-1))),\"-\")","v":{"v":0,"d":"0.00%"}},{"$f":"IFERROR(IF(CheltuieliExploatare[Buget]=CheltuieliExploatare[Perioada curentă],0,IF(CheltuieliExploatare[Perioada curentă]>CheltuieliExploatare[Buget],ABS((CheltuieliExploatare[Perioada curentă]/CheltuieliExploatare[Buget])-1),IF(AND(CheltuieliExploatare[Perioada curentă]<CheltuieliExploatare[Buget],CheltuieliExploatare[Buget]<0),-((CheltuieliExploatare[Perioada curentă]/CheltuieliExploatare[Buget])-1),(CheltuieliExploatare[Perioada curentă]/CheltuieliExploatare[Buget])-1))),\"-\")","v":{"v":0,"d":"0.00%"}}]
[null,"Cercetare și dezvoltare","Licențe de tehnologie",{"$nulls":3},{"$f":"IFERROR(IF(Venituri_Vânzări=0,\"-\",CheltuieliExploatare[Perioada curentă]/Venituri_Vânzări),\"-\")","v":"-"},{"$f":"IFERROR(IF(CheltuieliExploatare[Perioada anterioară]=CheltuieliExploatare[Perioada curentă],0,IF(CheltuieliExploatare[Perioada curentă]>CheltuieliExploatare[Perioada anterioară],ABS((CheltuieliExploatare[Perioada curentă]/CheltuieliExploatare[Perioada anterioară])-1),IF(AND(CheltuieliExploatare[Perioada curentă]<CheltuieliExploatare[Perioada anterioară],CheltuieliExploatare[Perioada anterioară]<0),-((CheltuieliExploatare[Perioada curentă]/CheltuieliExploatare[Perioada anterioară])-1),(CheltuieliExploatare[Perioada curentă]/CheltuieliExploatare[Perioada anterioară])-1))),\"-\")","v":{"v":0,"d":"0.00%"}},{"$f":"IFERROR(IF(CheltuieliExploatare[Buget]=CheltuieliExploatare[Perioada curentă],0,IF(CheltuieliExploatare[Perioada curentă]>CheltuieliExploatare[Buget],ABS((CheltuieliExploatare[Perioada curentă]/CheltuieliExploatare[Buget])-1),IF(AND(CheltuieliExploatare[Perioada curentă]<CheltuieliExploatare[Buget],CheltuieliExploatare[Buget]<0),-((CheltuieliExploatare[Perioada curentă]/CheltuieliExploatare[Buget])-1),(CheltuieliExploatare[Perioada curentă]/CheltuieliExploatare[Buget])-1))),\"-\")","v":{"v":0,"d":"0.00%"}}]
[null,"Cercetare și dezvoltare","Brevete ",{"$nulls":3},{"$f":"IFERROR(IF(Venituri_Vânzări=0,\"-\",CheltuieliExploatare[Perioada curentă]/Venituri_Vânzări),\"-\")","v":"-"},{"$f":"IFERROR(IF(CheltuieliExploatare[Perioada anterioară]=CheltuieliExploatare[Perioada curentă],0,IF(CheltuieliExploatare[Perioada curentă]>CheltuieliExploatare[Perioada anterioară],ABS((CheltuieliExploatare[Perioada curentă]/CheltuieliExploatare[Perioada anterioară])-1),IF(AND(CheltuieliExploatare[Perioada curentă]<CheltuieliExploatare[Perioada anterioară],CheltuieliExploatare[Perioada anterioară]<0),-((CheltuieliExploatare[Perioada curentă]/CheltuieliExploatare[Perioada anterioară])-1),(CheltuieliExploatare[Perioada curentă]/CheltuieliExploatare[Perioada anterioară])-1))),\"-\")","v":{"v":0,"d":"0.00%"}},{"$f":"IFERROR(IF(CheltuieliExploatare[Buget]=CheltuieliExploatare[Perioada curentă],0,IF(CheltuieliExploatare[Perioada curentă]>CheltuieliExploatare[Buget],ABS((CheltuieliExploatare[Perioada curentă]/CheltuieliExploatare[Buget])-1),IF(AND(CheltuieliExploatare[Perioada curentă]<CheltuieliExploatare[Buget],CheltuieliExploatare[Buget]<0),-((CheltuieliExploatare[Perioada curentă]/CheltuieliExploatare[Buget])-1),(CheltuieliExploatare[Perioada curentă]/CheltuieliExploatare[Buget])-1))),\"-\")","v":{"v":0,"d":"0.00%"}}]
[null,"Cercetare și dezvoltare","Alte cheltuieli (specificați)",{"$nulls":3},{"$f":"IFERROR(IF(Venituri_Vânzări=0,\"-\",CheltuieliExploatare[Perioada curentă]/Venituri_Vânzări),\"-\")","v":"-"},{"$f":"IFERROR(IF(CheltuieliExploatare[Perioada anterioară]=CheltuieliExploatare[Perioada curentă],0,IF(CheltuieliExploatare[Perioada curentă]>CheltuieliExploatare[Perioada anterioară],ABS((CheltuieliExploatare[Perioada curentă]/CheltuieliExploatare[Perioada anterioară])-1),IF(AND(CheltuieliExploatare[Perioada curentă]<CheltuieliExploatare[Perioada anterioară],CheltuieliExploatare[Perioada anterioară]<0),-((CheltuieliExploatare[Perioada curentă]/CheltuieliExploatare[Perioada anterioară])-1),(CheltuieliExploatare[Perioada curentă]/CheltuieliExploatare[Perioada anterioară])-1))),\"-\")","v":{"v":0,"d":"0.00%"}},{"$f":"IFERROR(IF(CheltuieliExploatare[Buget]=CheltuieliExploatare[Perioada curentă],0,IF(CheltuieliExploatare[Perioada curentă]>CheltuieliExploatare[Buget],ABS((CheltuieliExploatare[Perioada curentă]/CheltuieliExploatare[Buget])-1),IF(AND(CheltuieliExploatare[Perioada curentă]<CheltuieliExploatare[Buget],CheltuieliExploatare[Buget]<0),-((CheltuieliExploatare[Perioada curentă]/CheltuieliExploatare[Buget])-1),(CheltuieliExploatare[Perioada curentă]/CheltuieliExploatare[Buget])-1))),\"-\")","v":{"v":0,"d":"0.00%"}}]
[null,"Cercetare și dezvoltare","Alte cheltuieli (specificați)",{"$nulls":3},{"$f":"IFERROR(IF(Venituri_Vânzări=0,\"-\",CheltuieliExploatare[Perioada curentă]/Venituri_Vânzări),\"-\")","v":"-"},{"$f":"IFERROR(IF(CheltuieliExploatare[Perioada anterioară]=CheltuieliExploatare[Perioada curentă],0,IF(CheltuieliExploatare[Perioada curentă]>CheltuieliExploatare[Perioada anterioară],ABS((CheltuieliExploatare[Perioada curentă]/CheltuieliExploatare[Perioada anterioară])-1),IF(AND(CheltuieliExploatare[Perioada curentă]<CheltuieliExploatare[Perioada anterioară],CheltuieliExploatare[Perioada anterioară]<0),-((CheltuieliExploatare[Perioada curentă]/CheltuieliExploatare[Perioada anterioară])-1),(CheltuieliExploatare[Perioada curentă]/CheltuieliExploatare[Perioada anterioară])-1))),\"-\")","v":{"v":0,"d":"0.00%"}},{"$f":"IFERROR(IF(CheltuieliExploatare[Buget]=CheltuieliExploatare[Perioada curentă],0,IF(CheltuieliExploatare[Perioada curentă]>CheltuieliExploatare[Buget],ABS((CheltuieliExploatare[Perioada curentă]/CheltuieliExploatare[Buget])-1),IF(AND(CheltuieliExploatare[Perioada curentă]<CheltuieliExploatare[Buget],CheltuieliExploatare[Buget]<0),-((CheltuieliExploatare[Perioada curentă]/CheltuieliExploatare[Buget])-1),(CheltuieliExploatare[Perioada curentă]/CheltuieliExploatare[Buget])-1))),\"-\")","v":{"v":0,"d":"0.00%"}}]
[null,"Generale și administrative","Salarii",{"$nulls":3},{"$f":"IFERROR(IF(Venituri_Vânzări=0,\"-\",CheltuieliExploatare[Perioada curentă]/Venituri_Vânzări),\"-\")","v":"-"},{"$f":"IFERROR(IF(CheltuieliExploatare[Perioada anterioară]=CheltuieliExploatare[Perioada curentă],0,IF(CheltuieliExploatare[Perioada curentă]>CheltuieliExploatare[Perioada anterioară],ABS((CheltuieliExploatare[Perioada curentă]/CheltuieliExploatare[Perioada anterioară])-1),IF(AND(CheltuieliExploatare[Perioada curentă]<CheltuieliExploatare[Perioada anterioară],CheltuieliExploatare[Perioada anterioară]<0),-((CheltuieliExploatare[Perioada curentă]/CheltuieliExploatare[Perioada anterioară])-1),(CheltuieliExploatare[Perioada curentă]/CheltuieliExploatare[Perioada anterioară])-1))),\"-\")","v":{"v":0,"d":"0.00%"}},{"$f":"IFERROR(IF(CheltuieliExploatare[Buget]=CheltuieliExploatare[Perioada curentă],0,IF(CheltuieliExploatare[Perioada curentă]>CheltuieliExploatare[Buget],ABS((CheltuieliExploatare[Perioada curentă]/CheltuieliExploatare[Buget])-1),IF(AND(CheltuieliExploatare[Perioada curentă]<CheltuieliExploatare[Buget],CheltuieliExploatare[Buget]<0),-((CheltuieliExploatare[Perioada curentă]/CheltuieliExploatare[Buget])-1),(CheltuieliExploatare[Perioada curentă]/CheltuieliExploatare[Buget])-1))),\"-\")","v":{"v":0,"d":"0.00%"}}]
[null,"Generale și administrative","Servicii externe",{"$nulls":3},{"$f":"IFERROR(IF(Venituri_Vânzări=0,\"-\",CheltuieliExploatare[Perioada curentă]/Venituri_Vânzări),\"-\")","v":"-"},{"$f":"IFERROR(IF(CheltuieliExploatare[Perioada anterioară]=CheltuieliExploatare[Perioada curentă],0,IF(CheltuieliExploatare[Perioada curentă]>CheltuieliExploatare[Perioada anterioară],ABS((CheltuieliExploatare[Perioada curentă]/CheltuieliExploatare[Perioada anterioară])-1),IF(AND(CheltuieliExploatare[Perioada curentă]<CheltuieliExploatare[Perioada anterioară],CheltuieliExploatare[Perioada anterioară]<0),-((CheltuieliExploatare[Perioada curentă]/CheltuieliExploatare[Perioada anterioară])-1),(CheltuieliExploatare[Perioada curentă]/CheltuieliExploatare[Perioada anterioară])-1))),\"-\")","v":{"v":0,"d":"0.00%"}},{"$f":"IFERROR(IF(CheltuieliExploatare[Buget]=CheltuieliExploatare[Perioada curentă],0,IF(CheltuieliExploatare[Perioada curentă]>CheltuieliExploatare[Buget],ABS((CheltuieliExploatare[Perioada curentă]/CheltuieliExploatare[Buget])-1),IF(AND(CheltuieliExploatare[Perioada curentă]<CheltuieliExploatare[Buget],CheltuieliExploatare[Buget]<0),-((CheltuieliExploatare[Perioada curentă]/CheltuieliExploatare[Buget])-1),(CheltuieliExploatare[Perioada curentă]/CheltuieliExploatare[Buget])-1))),\"-\")","v":{"v":0,"d":"0.00%"}}]
[null,"Generale și administrative","Consumabile",{"$nulls":3},{"$f":"IFERROR(IF(Venituri_Vânzări=0,\"-\",CheltuieliExploatare[Perioada curentă]/Venituri_Vânzări),\"-\")","v":"-"},{"$f":"IFERROR(IF(CheltuieliExploatare[Perioada anterioară]=CheltuieliExploatare[Perioada curentă],0,IF(CheltuieliExploatare[Perioada curentă]>CheltuieliExploatare[Perioada anterioară],ABS((CheltuieliExploatare[Perioada curentă]/CheltuieliExploatare[Perioada anterioară])-1),IF(AND(CheltuieliExploatare[Perioada curentă]<CheltuieliExploatare[Perioada anterioară],CheltuieliExploatare[Perioada anterioară]<0),-((CheltuieliExploatare[Perioada curentă]/CheltuieliExploatare[Perioada anterioară])-1),(CheltuieliExploatare[Perioada curentă]/CheltuieliExploatare[Perioada anterioară])-1))),\"-\")","v":{"v":0,"d":"0.00%"}},{"$f":"IFERROR(IF(CheltuieliExploatare[Buget]=CheltuieliExploatare[Perioada curentă],0,IF(CheltuieliExploatare[Perioada curentă]>CheltuieliExploatare[Buget],ABS((CheltuieliExploatare[Perioada curentă]/CheltuieliExploatare[Buget])-1),IF(AND(CheltuieliExploatare[Perioada curentă]<CheltuieliExploatare[Buget],CheltuieliExploatare[Buget]<0),-((CheltuieliExploatare[Perioada curentă]/CheltuieliExploatare[Buget])-1),(CheltuieliExploatare[Perioada curentă]/CheltuieliExploatare[Buget])-1))),\"-\")","v":{"v":0,"d":"0.00%"}}]
[null,"Generale și administrative","Mese și divertisment",{"$nulls":3},{"$f":"IFERROR(IF(Venituri_Vânzări=0,\"-\",CheltuieliExploatare[Perioada curentă]/Venituri_Vânzări),\"-\")","v":"-"},{"$f":"IFERROR(IF(CheltuieliExploatare[Perioada anterioară]=CheltuieliExploatare[Perioada curentă],0,IF(CheltuieliExploatare[Perioada curentă]>CheltuieliExploatare[Perioada anterioară],ABS((CheltuieliExploatare[Perioada curentă]/CheltuieliExploatare[Perioada anterioară])-1),IF(AND(CheltuieliExploatare[Perioada curentă]<CheltuieliExploatare[Perioada anterioară],CheltuieliExploatare[Perioada anterioară]<0),-((CheltuieliExploatare[Perioada curentă]/CheltuieliExploatare[Perioada anterioară])-1),(CheltuieliExploatare[Perioada curentă]/CheltuieliExploatare[Perioada anterioară])-1))),\"-\")","v":{"v":0,"d":"0.00%"}},{"$f":"IFERROR(IF(CheltuieliExploatare[Buget]=CheltuieliExploatare[Perioada curentă],0,IF(CheltuieliExploatare[Perioada curentă]>CheltuieliExploatare[Buget],ABS((CheltuieliExploatare[Perioada curentă]/CheltuieliExploatare[Buget])-1),IF(AND(CheltuieliExploatare[Perioada curentă]<CheltuieliExploatare[Buget],CheltuieliExploatare[Buget]<0),-((CheltuieliExploatare[Perioada curentă]/CheltuieliExploatare[Buget])-1),(CheltuieliExploatare[Perioada curentă]/CheltuieliExploatare[Buget])-1))),\"-\")","v":{"v":0,"d":"0.00%"}}]
[null,"Generale și administrative","Chirie",{"$nulls":3},{"$f":"IFERROR(IF(Venituri_Vânzări=0,\"-\",CheltuieliExploatare[Perioada curentă]/Venituri_Vânzări),\"-\")","v":"-"},{"$f":"IFERROR(IF(CheltuieliExploatare[Perioada anterioară]=CheltuieliExploatare[Perioada curentă],0,IF(CheltuieliExploatare[Perioada curentă]>CheltuieliExploatare[Perioada anterioară],ABS((CheltuieliExploatare[Perioada curentă]/CheltuieliExploatare[Perioada anterioară])-1),IF(AND(CheltuieliExploatare[Perioada curentă]<CheltuieliExploatare[Perioada anterioară],CheltuieliExploatare[Perioada anterioară]<0),-((CheltuieliExploatare[Perioada curentă]/CheltuieliExploatare[Perioada anterioară])-1),(CheltuieliExploatare[Perioada curentă]/CheltuieliExploatare[Perioada anterioară])-1))),\"-\")","v":{"v":0,"d":"0.00%"}},{"$f":"IFERROR(IF(CheltuieliExploatare[Buget]=CheltuieliExploatare[Perioada curentă],0,IF(CheltuieliExploatare[Perioada curentă]>CheltuieliExploatare[Buget],ABS((CheltuieliExploatare[Perioada curentă]/CheltuieliExploatare[Buget])-1),IF(AND(CheltuieliExploatare[Perioada curentă]<CheltuieliExploatare[Buget],CheltuieliExploatare[Buget]<0),-((CheltuieliExploatare[Perioada curentă]/CheltuieliExploatare[Buget])-1),(CheltuieliExploatare[Perioada curentă]/CheltuieliExploatare[Buget])-1))),\"-\")","v":{"v":0,"d":"0.00%"}}]
[null,"Generale și administrative","Telefon",{"$nulls":3},{"$f":"IFERROR(IF(Venituri_Vânzări=0,\"-\",CheltuieliExploatare[Perioada curentă]/Venituri_Vânzări),\"-\")","v":"-"},{"$f":"IFERROR(IF(CheltuieliExploatare[Perioada anterioară]=CheltuieliExploatare[Perioada curentă],0,IF(CheltuieliExploatare[Perioada curentă]>CheltuieliExploatare[Perioada anterioară],ABS((CheltuieliExploatare[Perioada curentă]/CheltuieliExploatare[Perioada anterioară])-1),IF(AND(CheltuieliExploatare[Perioada curentă]<CheltuieliExploatare[Perioada anterioară],CheltuieliExploatare[Perioada anterioară]<0),-((CheltuieliExploatare[Perioada curentă]/CheltuieliExploatare[Perioada anterioară])-1),(CheltuieliExploatare[Perioada curentă]/CheltuieliExploatare[Perioada anterioară])-1))),\"-\")","v":{"v":0,"d":"0.00%"}},{"$f":"IFERROR(IF(CheltuieliExploatare[Buget]=CheltuieliExploatare[Perioada curentă],0,IF(CheltuieliExploatare[Perioada curentă]>CheltuieliExploatare[Buget],ABS((CheltuieliExploatare[Perioada curentă]/CheltuieliExploatare[Buget])-1),IF(AND(CheltuieliExploatare[Perioada curentă]<CheltuieliExploatare[Buget],CheltuieliExploatare[Buget]<0),-((CheltuieliExploatare[Perioada curentă]/CheltuieliExploatare[Buget])-1),(CheltuieliExploatare[Perioada curentă]/CheltuieliExploatare[Buget])-1))),\"-\")","v":{"v":0,"d":"0.00%"}}]
[null,"Generale și administrative","Utilități",{"$nulls":3},{"$f":"IFERROR(IF(Venituri_Vânzări=0,\"-\",CheltuieliExploatare[Perioada curentă]/Venituri_Vânzări),\"-\")","v":"-"},{"$f":"IFERROR(IF(CheltuieliExploatare[Perioada anterioară]=CheltuieliExploatare[Perioada curentă],0,IF(CheltuieliExploatare[Perioada curentă]>CheltuieliExploatare[Perioada anterioară],ABS((CheltuieliExploatare[Perioada curentă]/CheltuieliExploatare[Perioada anterioară])-1),IF(AND(CheltuieliExploatare[Perioada curentă]<CheltuieliExploatare[Perioada anterioară],CheltuieliExploatare[Perioada anterioară]<0),-((CheltuieliExploatare[Perioada curentă]/CheltuieliExploatare[Perioada anterioară])-1),(CheltuieliExploatare[Perioada curentă]/CheltuieliExploatare[Perioada anterioară])-1))),\"-\")","v":{"v":0,"d":"0.00%"}},{"$f":"IFERROR(IF(CheltuieliExploatare[Buget]=CheltuieliExploatare[Perioada curentă],0,IF(CheltuieliExploatare[Perioada curentă]>CheltuieliExploatare[Buget],ABS((CheltuieliExploatare[Perioada curentă]/CheltuieliExploatare[Buget])-1),IF(AND(CheltuieliExploatare[Perioada curentă]<CheltuieliExploatare[Buget],CheltuieliExploatare[Buget]<0),-((CheltuieliExploatare[Perioada curentă]/CheltuieliExploatare[Buget])-1),(CheltuieliExploatare[Perioada curentă]/CheltuieliExploatare[Buget])-1))),\"-\")","v":{"v":0,"d":"0.00%"}}]
[null,"Generale și administrative","Amortizare",{"$nulls":3},{"$f":"IFERROR(IF(Venituri_Vânzări=0,\"-\",CheltuieliExploatare[Perioada curentă]/Venituri_Vânzări),\"-\")","v":"-"},{"$f":"IFERROR(IF(CheltuieliExploatare[Perioada anterioară]=CheltuieliExploatare[Perioada curentă],0,IF(CheltuieliExploatare[Perioada curentă]>CheltuieliExploatare[Perioada anterioară],ABS((CheltuieliExploatare[Perioada curentă]/CheltuieliExploatare[Perioada anterioară])-1),IF(AND(CheltuieliExploatare[Perioada curentă]<CheltuieliExploatare[Perioada anterioară],CheltuieliExploatare[Perioada anterioară]<0),-((CheltuieliExploatare[Perioada curentă]/CheltuieliExploatare[Perioada anterioară])-1),(CheltuieliExploatare[Perioada curentă]/CheltuieliExploatare[Perioada anterioară])-1))),\"-\")","v":{"v":0,"d":"0.00%"}},{"$f":"IFERROR(IF(CheltuieliExploatare[Buget]=CheltuieliExploatare[Perioada curentă],0,IF(CheltuieliExploatare[Perioada curentă]>CheltuieliExploatare[Buget],ABS((CheltuieliExploatare[Perioada curentă]/CheltuieliExploatare[Buget])-1),IF(AND(CheltuieliExploatare[Perioada curentă]<CheltuieliExploatare[Buget],CheltuieliExploatare[Buget]<0),-((CheltuieliExploatare[Perioada curentă]/CheltuieliExploatare[Buget])-1),(CheltuieliExploatare[Perioada curentă]/CheltuieliExploatare[Buget])-1))),\"-\")","v":{"v":0,"d":"0.00%"}}]
[null,"Generale și administrative","Asigurare",{"$nulls":3},{"$f":"IFERROR(IF(Venituri_Vânzări=0,\"-\",CheltuieliExploatare[Perioada curentă]/Venituri_Vânzări),\"-\")","v":"-"},{"$f":"IFERROR(IF(CheltuieliExploatare[Perioada anterioară]=CheltuieliExploatare[Perioada curentă],0,IF(CheltuieliExploatare[Perioada curentă]>CheltuieliExploatare[Perioada anterioară],ABS((CheltuieliExploatare[Perioada curentă]/CheltuieliExploatare[Perioada anterioară])-1),IF(AND(CheltuieliExploatare[Perioada curentă]<CheltuieliExploatare[Perioada anterioară],CheltuieliExploatare[Perioada anterioară]<0),-((CheltuieliExploatare[Perioada curentă]/CheltuieliExploatare[Perioada anterioară])-1),(CheltuieliExploatare[Perioada curentă]/CheltuieliExploatare[Perioada anterioară])-1))),\"-\")","v":{"v":0,"d":"0.00%"}},{"$f":"IFERROR(IF(CheltuieliExploatare[Buget]=CheltuieliExploatare[Perioada curentă],0,IF(CheltuieliExploatare[Perioada curentă]>CheltuieliExploatare[Buget],ABS((CheltuieliExploatare[Perioada curentă]/CheltuieliExploatare[Buget])-1),IF(AND(CheltuieliExploatare[Perioada curentă]<CheltuieliExploatare[Buget],CheltuieliExploatare[Buget]<0),-((CheltuieliExploatare[Perioada curentă]/CheltuieliExploatare[Buget])-1),(CheltuieliExploatare[Perioada curentă]/CheltuieliExploatare[Buget])-1))),\"-\")","v":{"v":0,"d":"0.00%"}}]
[null,"Generale și administrative","Reparații și întreținere",{"$nulls":3},{"$f":"IFERROR(IF(Venituri_Vânzări=0,\"-\",CheltuieliExploatare[Perioada curentă]/Venituri_Vânzări),\"-\")","v":"-"},{"$f":"IFERROR(IF(CheltuieliExploatare[Perioada anterioară]=CheltuieliExploatare[Perioada curentă],0,IF(CheltuieliExploatare[Perioada curentă]>CheltuieliExploatare[Perioada anterioară],ABS((CheltuieliExploatare[Perioada curentă]/CheltuieliExploatare[Perioada anterioară])-1),IF(AND(CheltuieliExploatare[Perioada curentă]<CheltuieliExploatare[Perioada anterioară],CheltuieliExploatare[Perioada anterioară]<0),-((CheltuieliExploatare[Perioada curentă]/CheltuieliExploatare[Perioada anterioară])-1),(CheltuieliExploatare[Perioada curentă]/CheltuieliExploatare[Perioada anterioară])-1))),\"-\")","v":{"v":0,"d":"0.00%"}},{"$f":"IFERROR(IF(CheltuieliExploatare[Buget]=CheltuieliExploatare[Perioada curentă],0,IF(CheltuieliExploatare[Perioada curentă]>CheltuieliExploatare[Buget],ABS((CheltuieliExploatare[Perioada curentă]/CheltuieliExploatare[Buget])-1),IF(AND(CheltuieliExploatare[Perioada curentă]<CheltuieliExploatare[Buget],CheltuieliExploatare[Buget]<0),-((CheltuieliExploatare[Perioada curentă]/CheltuieliExploatare[Buget])-1),(CheltuieliExploatare[Perioada curentă]/CheltuieliExploatare[Buget])-1))),\"-\")","v":{"v":0,"d":"0.00%"}}]
[null,"Generale și administrative","Alte cheltuieli (specificați)",{"$nulls":3},{"$f":"IFERROR(IF(Venituri_Vânzări=0,\"-\",CheltuieliExploatare[Perioada curentă]/Venituri_Vânzări),\"-\")","v":"-"},{"$f":"IFERROR(IF(CheltuieliExploatare[Perioada anterioară]=CheltuieliExploatare[Perioada curentă],0,IF(CheltuieliExploatare[Perioada curentă]>CheltuieliExploatare[Perioada anterioară],ABS((CheltuieliExploatare[Perioada curentă]/CheltuieliExploatare[Perioada anterioară])-1),IF(AND(CheltuieliExploatare[Perioada curentă]<CheltuieliExploatare[Perioada anterioară],CheltuieliExploatare[Perioada anterioară]<0),-((CheltuieliExploatare[Perioada curentă]/CheltuieliExploatare[Perioada anterioară])-1),(CheltuieliExploatare[Perioada curentă]/CheltuieliExploatare[Perioada anterioară])-1))),\"-\")","v":{"v":0,"d":"0.00%"}},{"$f":"IFERROR(IF(CheltuieliExploatare[Buget]=CheltuieliExploatare[Perioada curentă],0,IF(CheltuieliExploatare[Perioada curentă]>CheltuieliExploatare[Buget],ABS((CheltuieliExploatare[Perioada curentă]/CheltuieliExploatare[Buget])-1),IF(AND(CheltuieliExploatare[Perioada curentă]<CheltuieliExploatare[Buget],CheltuieliExploatare[Buget]<0),-((CheltuieliExploatare[Perioada curentă]/CheltuieliExploatare[Buget])-1),(CheltuieliExploatare[Perioada curentă]/CheltuieliExploatare[Buget])-1))),\"-\")","v":{"v":0,"d":"0.00%"}}]
[null,"Generale și administrative","Alte cheltuieli (specificați)",{"$nulls":3},{"$f":"IFERROR(IF(Venituri_Vânzări=0,\"-\",CheltuieliExploatare[Perioada curentă]/Venituri_Vânzări),\"-\")","v":"-"},{"$f":"IFERROR(IF(CheltuieliExploatare[Perioada anterioară]=CheltuieliExploatare[Perioada curentă],0,IF(CheltuieliExploatare[Perioada curentă]>CheltuieliExploatare[Perioada anterioară],ABS((CheltuieliExploatare[Perioada curentă]/CheltuieliExploatare[Perioada anterioară])-1),IF(AND(CheltuieliExploatare[Perioada curentă]<CheltuieliExploatare[Perioada anterioară],CheltuieliExploatare[Perioada anterioară]<0),-((CheltuieliExploatare[Perioada curentă]/CheltuieliExploatare[Perioada anterioară])-1),(CheltuieliExploatare[Perioada curentă]/CheltuieliExploatare[Perioada anterioară])-1))),\"-\")","v":{"v":0,"d":"0.00%"}},{"$f":"IFERROR(IF(CheltuieliExploatare[Buget]=CheltuieliExploatare[Perioada curentă],0,IF(CheltuieliExploatare[Perioada curentă]>CheltuieliExploatare[Buget],ABS((CheltuieliExploatare[Perioada curentă]/CheltuieliExploatare[Buget])-1),IF(AND(CheltuieliExploatare[Perioada curentă]<CheltuieliExploatare[Buget],CheltuieliExploatare[Buget]<0),-((CheltuieliExploatare[Perioada curentă]/CheltuieliExploatare[Buget])-1),(CheltuieliExploatare[Perioada curentă]/CheltuieliExploatare[Buget])-1))),\"-\")","v":{"v":0,"d":"0.00%"}}]
[null,"Total cheltuieli de operare",null,{"$f":"SUBTOTAL(109,CheltuieliExploatare[Perioada anterioară])","v":0},{"$f":"SUBTOTAL(109,CheltuieliExploatare[Buget])","v":0},{"$f":"SUBTOTAL(109,CheltuieliExploatare[Perioada curentă])","v":0},{"$f":"SUBTOTAL(109,CheltuieliExploatare[Perioada curentă ca procent din vânzări])","v":{"v":0,"d":"0.00%"}},{"$f":"SUBTOTAL(109,CheltuieliExploatare[Procent modificare față de perioada anterioară])","v":{"v":0,"d":"0.00%"}},{"$f":"SUBTOTAL(109,CheltuieliExploatare[Procent modificare față de buget])","v":{"v":0,"d":"0.00%"}}]

{"sheet":"Impozite și taxe","index":4,"n_rows":10,"n_cols":9,"rows_kept":10,"merged":[[0,7,2,8]]}
[null,{"$f":"Titlu_RegistruLucru","v":"Declarație de profit și pierdere"}]
[null,{"$f":"Nume_Firmă","v":"Numele firmei"},"Exprimat în mii"]
[null,"Impozite și taxe",{"$f":"IFERROR(Impozite_și_taxe[[#Totals],[Perioada curentă]],\"-\")","v":0}]
[null,"Tip","Descriere","Perioada anterioară","Buget","Perioada curentă","Perioada curentă ca procent din vânzări","Procent modificare față de perioada anterioară","Procent modificare față de buget"]
[null,"Impozite și taxe","Impozite pe venit",{"$nulls":3},{"$f":"IFERROR(IF(Venituri_Vânzări=0,\"-\",Impozite_și_taxe[Perioada curentă]/Venituri_Vânzări),\"-\")","v":"-"},{"$f":"IFERROR(IF(Impozite_și_taxe[Perioada anterioară]=Impozite_și_taxe[Perioada curentă],0,IF(Impozite_și_taxe[Perioada curentă]>Impozite_și_taxe[Perioada anterioară],ABS((Impozite_și_taxe[Perioada curentă]/Impozite_și_taxe[Perioada anterioară])-1),IF(AND(Impozite_și_taxe[Perioada curentă]<Impozite_și_taxe[Perioada anterioară],Impozite_și_taxe[Perioada anterioară]<0),-((Impozite_și_taxe[Perioada curentă]/Impozite_și_taxe[Perioada anterioară])-1),(Impozite_și_taxe[Perioada curentă]/Impozite_și_taxe[Perioada anterioară])-1))),\"-\")","v":{"v":0,"d":"0.00%"}},{"$f":"IFERROR(IF(Impozite_și_taxe[Buget]=Impozite_și_taxe[Perioada curentă],0,IF(Impozite_și_taxe[Perioada curentă]>Impozite_și_taxe[Buget],ABS((Impozite_și_taxe[Perioada curentă]/Impozite_și_taxe[Buget])-1),IF(AND(Impozite_și_taxe[Perioada curentă]<Impozite_și_taxe[Buget],Impozite_și_taxe[Buget]<0),-((Impozite_și_taxe[Perioada curentă]/Impozite_și_taxe[Buget])-1),(Impozite_și_taxe[Perioada curentă]/Impozite_și_taxe[Buget])-1))),\"-\")","v":{"v":0,"d":"0.00%"}}]
[null,"Impozite și taxe","Impozite pe salarii",{"$nulls":3},{"$f":"IFERROR(IF(Venituri_Vânzări=0,\"-\",Impozite_și_taxe[Perioada curentă]/Venituri_Vânzări),\"-\")","v":"-"},{"$f":"IFERROR(IF(Impozite_și_taxe[Perioada anterioară]=Impozite_și_taxe[Perioada curentă],0,IF(Impozite_și_taxe[Perioada curentă]>Impozite_și_taxe[Perioada anterioară],ABS((Impozite_și_taxe[Perioada curentă]/Impozite_și_taxe[Perioada anterioară])-1),IF(AND(Impozite_și_taxe[Perioada curentă]<Impozite_și_taxe[Perioada anterioară],Impozite_și_taxe[Perioada anterioară]<0),-((Impozite_și_taxe[Perioada curentă]/Impozite_și_taxe[Perioada anterioară])-1),(Impozite_și_taxe[Perioada curentă]/Impozite_și_taxe[Perioada anterioară])-1))),\"-\")","v":{"v":0,"d":"0.00%"}},{"$f":"IFERROR(IF(Impozite_și_taxe[Buget]=Impozite_și_taxe[Perioada curentă],0,IF(Impozite_și_taxe[Perioada curentă]>Impozite_și_taxe[Buget],ABS((Impozite_și_taxe[Perioada curentă]/Impozite_și_taxe[Buget])-1),IF(AND(Impozite_și_taxe[Perioada curentă]<Impozite_și_taxe[Buget],Impozite_și_taxe[Buget]<0),-((Impozite_și_taxe[Perioada curentă]/Impozite_și_taxe[Buget])-1),(Impozite_și_taxe[Perioada curentă]/Impozite_și_taxe[Buget])-1))),\"-\")","v":{"v":0,"d":"0.00%"}}]
[null,"Impozite și taxe","Impozite pe clădiri",{"$nulls":3},{"$f":"IFERROR(IF(Venituri_Vânzări=0,\"-\",Impozite_și_taxe[Perioada curentă]/Venituri_Vânzări),\"-\")","v":"-"},{"$f":"IFERROR(IF(Impozite_și_taxe[Perioada anterioară]=Impozite_și_taxe[Perioada curentă],0,IF(Impozite_și_taxe[Perioada curentă]>Impozite_și_taxe[Perioada anterioară],ABS((Impozite_și_taxe[Perioada curentă]/Impozite_și_taxe[Perioada anterioară])-1),IF(AND(Impozite_și_taxe[Perioada curentă]<Impozite_și_taxe[Perioada anterioară],Impozite_și_taxe[Perioada anterioară]<0),-((Impozite_și_taxe[Perioada curentă]/Impozite_și_taxe[Perioada anterioară])-1),(Impozite_și_taxe[Perioada curentă]/Impozite_și_taxe[Perioada anterioară])-1))),\"-\")","v":{"v":0,"d":"0.00%"}},{"$f":"IFERROR(IF(Impozite_și_taxe[Buget]=Impozite_și_taxe[Perioada curentă],0,IF(Impozite_și_taxe[Perioada curentă]>Impozite_și_taxe[Buget],ABS((Impozite_și_taxe[Perioada curentă]/Impozite_și_taxe[Buget])-1),IF(AND(Impozite_și_taxe[Perioada curentă]<Impozite_și_taxe[Buget],Impozite_și_taxe[Buget]<0),-((Impozite_și_taxe[Perioada curentă]/Impozite_și_taxe[Buget])-1),(Impozite_și_taxe[Perioada curentă]/Impozite_și_taxe[Buget])-1))),\"-\")","v":{"v":0,"d":"0.00%"}}]
[null,"Impozite și taxe","Alte taxe și impozite (specificați)",{"$nulls":3},{"$f":"IFERROR(IF(Venituri_Vânzări=0,\"-\",Impozite_și_taxe[Perioada curentă]/Venituri_Vânzări),\"-\")","v":"-"},{"$f":"IFERROR(IF(Impozite_și_taxe[Perioada anterioară]=Impozite_și_taxe[Perioada curentă],0,IF(Impozite_și_taxe[Perioada curentă]>Impozite_și_taxe[Perioada anterioară],ABS((Impozite_și_taxe[Perioada curentă]/Impozite_și_taxe[Perioada anterioară])-1),IF(AND(Impozite_și_taxe[Perioada curentă]<Impozite_și_taxe[Perioada anterioară],Impozite_și_taxe[Perioada anterioară]<0),-((Impozite_și_taxe[Perioada curentă]/Impozite_și_taxe[Perioada anterioară])-1),(Impozite_și_taxe[Perioada curentă]/Impozite_și_taxe[Perioada anterioară])-1))),\"-\")","v":{"v":0,"d":"0.00%"}},{"$f":"IFERROR(IF(Impozite_și_taxe[Buget]=Impozite_și_taxe[Perioada curentă],0,IF(Impozite_și_taxe[Perioada curentă]>Impozite_și_taxe[Buget],ABS((Impozite_și_taxe[Perioada curentă]/Impozite_și_taxe[Buget])-1),IF(AND(Impozite_și_taxe[Perioada curentă]<Impozite_și_taxe[Buget],Impozite_și_taxe[Buget]<0),-((Impozite_și_taxe[Perioada curentă]/Impozite_și_taxe[Buget])-1),(Impozite_și_taxe[Perioada curentă]/Impozite_și_taxe[Buget])-1))),\"-\")","v":{"v":0,"d":"0.00%"}}]
[null,"Impozite și taxe","Alte taxe și impozite (specificați)",{"$nulls":3},{"$f":"IFERROR(IF(Venituri_Vânzări=0,\"-\",Impozite_și_taxe[Perioada curentă]/Venituri_Vânzări),\"-\")","v":"-"},{"$f":"IFERROR(IF(Impozite_și_taxe[Perioada anterioară]=Impozite_și_taxe[Perioada curentă],0,IF(Impozite_și_taxe[Perioada curentă]>Impozite_și_taxe[Perioada anterioară],ABS((Impozite_și_taxe[Perioada curentă]/Impozite_și_taxe[Perioada anterioară])-1),IF(AND(Impozite_și_taxe[Perioada curentă]<Impozite_și_taxe[Perioada anterioară],Impozite_și_taxe[Perioada anterioară]<0),-((Impozite_și_taxe[Perioada curentă]/Impozite_și_taxe[Perioada anterioară])-1),(Impozite_și_taxe[Perioada curentă]/Impozite_și_taxe[Perioada anterioară])-1))),\"-\")","v":{"v":0,"d":"0.00%"}},{"$f":"IFERROR(IF(Impozite_și_taxe[Buget]=Impozite_și_taxe[Perioada curentă],0,IF(Impozite_și_taxe[Perioada curentă]>Impozite_și_taxe[Buget],ABS((Impozite_și_taxe[Perioada curentă]/Impozite_și_taxe[Buget])-1),IF(AND(Impozite_și_taxe[Perioada curentă]<Impozite_și_taxe[Buget],Impozite_și_taxe[Buget]<0),-((Impozite_și_taxe[Perioada curentă]/Impozite_și_taxe[Buget])-1),(Impozite_și_taxe[Perioada curentă]/Impozite_și_taxe[Buget])-1))),\"-\")","v":{"v":0,"d":"0.00%"}}]
[null,"Total taxe și impozite",null,{"$f":"SUBTOTAL(109,Impozite_și_taxe[Perioada anterioară])","v":0},{"$f":"SUBTOTAL(109,Impozite_și_taxe[Buget])","v":0},{"$f":"SUBTOTAL(109,Impozite_și_taxe[Perioada curentă])","v":0},{"$f":"IFERROR(SUBTOTAL(109,Impozite_și_taxe[Perioada curentă ca procent din vânzări]),\"-\")","v":{"v":0,"d":"0.00%"}},{"$f":"SUBTOTAL(109,Impozite_și_taxe[Procent modificare față de perioada anterioară])","v":{"v":0,"d":"0.00%"}},{"$f":"SUBTOTAL(109,Impozite_și_taxe[Procent modificare față de buget])","v":{"v":0,"d":"0.00%"}}]

{"sheet":"Categorii","index":5,"n_rows":8,"n_cols":2,"rows_kept":8}
[null,"Categorii"]
[null,"Venituri din vânzări"]
[null,"Cheltuieli de producție"]
[null,"Venit"]
[null,"Vânzări și marketing"]
[null,"Cercetare și dezvoltare"]
[null,"Generale și administrative"]
[null,"Impozite și taxe"]